[Event "XV American Continental 2022"]
[Site "San Salvador"]
[Date "2022.05.04"]
[Round "4.4"]
[White "Hungaski, Robert"]
[Black "Munoz Sanchez, Miguel"]
[Result "1/2-1/2"]
[ECO "E41"]
[WhiteElo "2521"]
[BlackElo "2226"]
[Annotator "TA"]
[PlyCount "56"]
[EventDate "2022.05.02"]
[EventCountry "ESA"]
[SourceTitle "playchess.com"]
[Source "ChessBase"]
[SourceQuality "1"]
[TimeControl "40/5400+30:1800+30"]

{[%evp 19,56,54,49,22,16,18,78,62,80,78,82,61,57,23,46,49,64,52,93,88,79,94,104,0,0,0,0,0,0,0,0,0,0,0,0,0,0,0,0]} 1. d4 {[%emt 0:03:44]} Nf6 {[%emt 0:00:26]} 2. c4 {[%emt 0:00:06]} e6 {[%emt 0:00:10]} 3. Nc3 {[%emt 0:00:08]} Bb4 {[%emt 0:00:30]} 4. e3 {[%emt 0:00:06]} c5 {[%emt 0:01:10]} 5. Bd3 {[%emt 0:01:01]} Nc6 {[%emt 0:01:21]} 6. Nge2 {[%emt 0:01:07]} d5 {[%emt 0:02:05]} 7. O-O {[%emt 0:01:00]} O-O {[%emt 0:02:09]} 8. cxd5 {[%emt 0:04:01]} exd5 {[%emt 0:04:48]} 9. a3 {[%emt 0:00:05][%cal Ba2a3,Ba3b4,Bb4b5][%mdl 32]} cxd4 {[%emt 0:00:39] 9...Bxc3 is more advanced technology.} 10. axb4 {[%emt 0:02:05]} dxc3 {[%emt 0:00:06]} 11. bxc3 {[%emt 0:00:35] E48: Nimzo-Indian: Rubinstein: 5 Bd3 d5 including 6 Ne2, but excluding 6 a3.} (11. b5 $5 {[%cal Rb5c6]} Ne5 12. Nxc3 $14) 11... Bg4 {[%emt 0:06:52]} 12. f3 {[%emt 0:02:20]} Bh5 {[%emt 0:02:21]} (12... Bd7 $11 {keeps the balance.}) 13. Nf4 $16 {[%emt 0:00:07] White is better.} Bg6 {[%emt 0:00:14]} 14. Be2 {[%emt 0:00:06] [#] White is more active.} a5 $146 {[%emt 0:01:05]} ({Predecessor:} 14... Re8 15. Qb3 a5 16. b5 Ne7 17. g4 h5 18. h3 hxg4 19. hxg4 Nd7 20. Rd1 Qc7 {0-1 (51) Krasteva,B (2305)-Karisik,N (2144) Paracin 2021}) 15. b5 {[%emt 0:07:12]} Ne5 {[%emt 0:02:21]} 16. Qb3 {[%emt 0:07:58] Threatens to win with Rd1.} Bf5 {[%emt 0:06:20]} 17. Rd1 {[%emt 0:03:28][%cal Rf4d5]} Be6 {[%emt 0:00:21]} 18. Ba3 {[%emt 0:15:28]} (18. Qa4 $5 {[%cal Rc3c4]}) 18... Qb6 {[%emt 0:09:15]} 19. Bxf8 {[%emt 0:02:00][%cal Oc3c4] Black must now prevent c4!} Qxe3+ {[%emt 0:00:06]} 20. Kh1 {[%emt 0:00:14]} Rxf8 {[%emt 0:00:38] [#]} 21. Nxe6 {[%emt 0:02:10]} ({White must play} 21. Qa4 $1 $16 {[%cal Ra4d4]}) 21... fxe6 $11 {[%emt 0:04:41] The position is equal.} 22. Qa4 {[%emt 0:17:23]} Neg4 $36 {[%emt 0:14:13][%mdl 2112] Deflection. Black is pushing.} 23. fxg4 {[%emt 0:01:13]} Ne4 $1 {[%emt 0:00:06] ( -> ...Nf2+)} ({Resist} 23... Qxe2 24. Re1 (24. Qxa5 Ne4 $11) 24... Qf2 25. Rf1 $16 (25. Qxa5 Nxg4 26. Qc7 Qf5 $16) (25. Rxe6 Ne4 $17)) 24. Rf1 {[%emt 0:03:58]} Ng3+ {[%emt 0:00:38]} 25. hxg3 {[%emt 0:00:06] Rxf8+ is the strong threat.} Qh6+ {[%emt 0:00:01]} 26. Kg1 {[%emt 0:00:09]} Qe3+ {[%emt 0:00:03]} 27. Kh2 {[%emt 0:00:16]} Qh6+ {[%emt 0:00:04]} 28. Kg1 {[%emt 0:01:16]} Qe3+ {Weighted Error Value: White=0.12 (very precise) /Black=0.11 (very precise)} 1/2-1/2

[Event "XV American Continental 2022"]
[Site "San Salvador"]
[Date "2022.05.04"]
[Round "4.5"]
[White "Pichot, Alan"]
[Black "Proudian, Armen"]
[Result "1-0"]
[ECO "C88"]
[WhiteElo "2652"]
[BlackElo "2418"]
[Annotator "TA"]
[PlyCount "93"]
[EventDate "2022.05.02"]
[EventCountry "ESA"]
[SourceTitle "playchess.com"]
[Source "ChessBase"]
[SourceQuality "1"]
[TimeControl "40/5400+30:1800+30"]

{[%evp 23,93,25,23,30,25,29,29,31,49,48,13,36,50,52,91,85,101,56,57,63,59,62,58,74,119,116,114,109,105,107,118,98,127,122,208,216,198,214,216,208,327,329,346,364,364,355,347,341,469,464,2049,1928,3585,2879,5243,2281,2034,1698,1746,1718,1739,1731,29983,29984,29984,29985,29987,29988,29988,29987,29984,29985]} 1. e4 {[%emt 0:00:08]} e5 {[%emt 0:00:28]} 2. Nf3 {[%emt 0:00:14]} Nc6 {[%emt 0:00:26]} 3. Bb5 {[%emt 0:00:22]} a6 {[%emt 0:00:47]} 4. Ba4 {[%emt 0:00:08]} Nf6 {[%emt 0:00:41]} 5. O-O {[%emt 0:00:34]} Be7 {[%emt 0:00:45]} 6. Re1 {[%emt 0:00:16]} b5 {[%emt 0:00:51]} 7. Bb3 {[%emt 0:00:09]} O-O {[%emt 0:00:22]} 8. a4 {[%emt 0:00:15]} b4 {[%emt 0:00:51]} 9. d3 {[%emt 0:01:38]} d6 {[%emt 0:01:26]} 10. c3 {[%emt 0:00:37]} Rb8 {[%emt 0:03:08]} 11. Nbd2 {[%emt 0:00:51]} Na5 {[%emt 0:06:05]} 12. Ba2 {[%emt 0:00:35]} c5 {[%emt 0:02:16]} 13. d4 {[%emt 0:00:19] C88: Closed Ruy Lopez: Anti-Marshall Systems.} Qc7 {[%emt 0:07:24]} 14. dxe5 {[%emt 0:01:12]} dxe5 {[%emt 0:00:11]} 15. Nc4 {[%emt 0:00:10] White has an edge.} Rd8 {[%emt 0:06:49]} 16. Qe2 {[%emt 0:00:49] [#] aiming for Nxa5.} b3 {[%emt 0:10:39]} 17. Nxa5 {[%emt 0:00:08]} (17. Bb1 Nxc4 18. Qxc4 Be6 $17) 17... Qxa5 {[%emt 0:00:25]} 18. Bb1 {[%emt 0:00:05][%cal Ba2b1,Bb1d3,Bd3c4,Bc4d5][%mdl 32]} Qc7 {[%emt 0:20:55]} 19. Bd3 {[%emt 0:06:24] [#]} Ne8 $146 {[%emt 0:03:31]} ({Predecessor:} 19... a5 20. Bg5 Nh5 21. Be3 Bb7 22. Bc4 h6 23. Nd2 Nf4 24. Bxf4 exf4 25. Nxb3 Bc8 {1-0 (63) Carlsen,M (2714)-Adams,M (2729) Moscow 2007}) 20. Bc4 {[%emt 0:04:31]} Nd6 {[%emt 0:16:45]} 21. Bd5 {[%emt 0:04:51]} (21. Nxe5 {feels hotter.} Bf6 22. Nf3 Bxc3 23. bxc3 Nxc4 24. Qxc4 b2 25. Bxb2 Rxb2 26. Rad1) 21... Bf6 {[%emt 0:01:11]} 22. Nd2 {[%emt 0:10:10]} Bb7 {[%emt 0:02:58]} 23. Bxb3 {[%emt 0:02:43]} Nxe4 {[%emt 0:03:57] White leaves nothing to chance now.} 24. Nxe4 {[%emt 0:00:25]} Bxe4 {[%emt 0:00:06] [#]} 25. Bxf7+ $1 {[%emt 0:02:47][%mdl 512]} Qxf7 {[%emt 0:00:09]} 26. Qxe4 {[%emt 0:00:06]} Qd5 {[%emt 0:03:13]} 27. Qe2 {[%emt 0:03:02]} Qd3 {[%emt 0:01:08] Threatens to win with ...Qxe2.} 28. Qg4 {[%emt 0:01:53]} Rb6 {[%emt 0:01:34]} (28... a5 $16 {might work better.}) 29. Be3 $18 {[%emt 0:01:44]} Qd7 {[%emt 0:01:50]} 30. Qe2 {[%emt 0:05:51]} Be7 {[%emt 0:02:21]} 31. b4 {[%emt 0:00:43] Hoping for Rad1.} Rg6 {[%emt 0:00:35]} (31... Qd3 {was called for.} 32. Qa2+ (32. Bxc5 Qxe2 33. Rxe2 Bxc5 $16) 32... Kf8 33. Bxc5 Bxc5) 32. Red1 {[%emt 0:02:20]} ({Don't play} 32. bxc5 Qc6 33. Qc4+ Qd5 34. Qxd5+ Rxd5 $18) ({Not} 32. Bxc5 Qd5 33. g3 Bxc5 $16) 32... Qc6 {[%emt 0:01:18][%csl Gg6][%cal Rc6g2]} 33. Rxd8+ {[%emt 0:01:43]} Bxd8 {[%emt 0:00:04][%csl Gg6][%cal Rc6g2]} 34. g3 {[%emt 0:01:17]} cxb4 {[%emt 0:00:43]} 35. cxb4 {[%emt 0:00:08][%cal Bc3b4,Bb4b5][%mdl 32]} h6 {[%emt 0:01:05]} 36. b5 {[%emt 0:00:30]} Qc3 {[%emt 0:00:29]} (36... axb5 $142 37. axb5 Qd7 38. Qc4+ Kh7) 37. Rc1 {[%emt 0:00:35]} Qa5 {[%emt 0:00:09]} 38. Qd3 {[%emt 0:01:00]} e4 {[%emt 0:00:55]} 39. Qxe4 {[%emt 0:00:22]} (39. Qd5+ $142 Kh7 40. Rc8 axb5 41. Rxd8 Qxd8 42. Qxd8 bxa4 43. Qe7) 39... Rd6 {[%emt 0:00:29]} 40. Bf4 {[%emt 0:00:57]} Rf6 {[%emt 0:00:53]} 41. Rc8 {[%emt 0:30:56] Strongly threatening Qd5+.} Kf7 {[%emt 0:15:25]} 42. Qd5+ {[%emt 0:00:00]} Ke7 {[%emt 0:04:54]} 43. Bd2 {[%emt 0:00:00] White mates.} Qb6 {[%emt 0:00:21]} 44. Be3 {[%emt 0:00:00]} Qa5 {[%emt 0:00:34]} 45. Bc5+ {[%emt 0:00:00]} Ke8 {[%emt 0:00:12]} 46. Kg2 {[%emt 0:00:00]} axb5 {[%emt 0:01:50]} 47. axb5 {[%emt 0:00:00] Weighted Error Value: White=0.03 (flawless) /Black=0.55} 1-0

[Event "XV American Continental 2022"]
[Site "San Salvador"]
[Date "2022.05.04"]
[Round "4.6"]
[White "Figueredo Losada, Leonel"]
[Black "Quesada Perez, Yasser"]
[Result "0-1"]
[ECO "B32"]
[WhiteElo "2337"]
[BlackElo "2560"]
[Annotator "TA"]
[PlyCount "50"]
[EventDate "2022.05.02"]
[EventCountry "ESA"]
[SourceTitle "playchess.com"]
[Source "ChessBase"]
[SourceQuality "1"]
[TimeControl "40/5400+30:1800+30"]

{[%evp 15,50,39,29,28,45,33,43,51,45,44,47,60,64,60,61,64,53,-42,13,-123,-122,-132,-85,-170,-154,-431,-415,-430,-429,-623,-579,-1048,-1028,-1351,-1272,-29988,-29989]} 1. e4 {[%emt 0:28:00]} c5 {[%emt 0:00:36]} 2. Nf3 {[%emt 0:00:05]} Nc6 {[%emt 0:00:10]} 3. d4 {[%emt 0:00:04]} cxd4 {[%emt 0:00:10]} 4. Nxd4 {[%emt 0:00:03]} Qb6 {[%emt 0:00:14]} 5. Nb3 {[%emt 0:00:05]} Nf6 {[%emt 0:00:08]} 6. Nc3 {[%emt 0:00:04]} e6 {[%emt 0:00:07]} 7. Qe2 {[%emt 0:00:02]} Bb4 {[%emt 0:00:13]} 8. Bd2 {[%emt 0:00:02]} O-O {[%emt 0:00:17]} 9. a3 {[%emt 0:00:02] B33: Sicilian: Pelikan and Sveshnikov Variations.} Be7 {[%emt 0:00:20]} 10. O-O-O {[%emt 0:00:04]} d5 {[%emt 0:00:06]} 11. e5 {[%emt 0:00:27] White is slightly better.} Nd7 {[%emt 0:00:06]} 12. f4 {[%emt 0:00:07] [#]} d4 $146 {[%emt 0:00:28]} ({Predecessor:} 12... Nc5 13. Nxc5 Qxc5 14. h4 Bd7 15. Qh5 Be8 16. Qg4 b5 17. f5 Nxe5 18. Qg3 Bf6 {½-½ (56) Najer,E (2674)-Azarov,S (2589) Czech Republic 2016}) 13. Ne4 {[%emt 0:00:36]} a5 {[%emt 0:00:06][%cal Ba7a5,Ba5a4][%mdl 32]} 14. Be1 $1 {[%emt 0:04:19]} a4 {[%emt 0:00:17]} 15. Nbd2 {[%emt 0:00:04]} Qc7 {[%emt 0:00:04][%cal Ob7b5]} 16. Qh5 {[%emt 0:00:23]} (16. Nf3 $14) 16... f5 {[%emt 0:03:02]} (16... b5 $15) 17. Ng5 {[%emt 0:12:23]} (17. exf6 $1 $11 {remains equal.} Nxf6 18. Nxf6+ Bxf6 19. Bc4 (19. Bd3 g6 $11)) 17... Bxg5 $17 {[%emt 0:00:53]} 18. Qxg5 {[%emt 0:00:03]} Nc5 {[%emt 0:03:02]} (18... b5 $142) 19. Nf3 {[%emt 0:02:46]} (19. Bf2 $17) 19... b5 $1 $19 {[%emt 0:39:44][%cal Ob5b4] ...b4! is the strong threat.} 20. Bxb5 {[%emt 0:06:00] [#] Now White is beyond hope.} ({But not} 20. Nxd4 $2 Nxd4 21. Rxd4 Nb3+ 22. Kb1 Nxd4 $19) (20. Kb1 $17 {might work better.} b4 21. Nxd4 (21. Bxb4 $2 Nxb4 22. axb4 Ne4 $19) 21... Nxd4 22. Rxd4 bxa3 23. bxa3) 20... Ba6 $1 {[%emt 0:00:08]} 21. Bxc6 {[%emt 0:05:11] [#]} d3 {[%emt 0:01:05]} 22. Bb4 {[%emt 0:06:37]} (22. Nd4 $142 Rad8 23. Bc3 Rxd4 24. Bf3 (24. Bxd4 $2 {too greedy.} Ne4 $19)) 22... Qxc6 {[%emt 0:03:14]} 23. Bxc5 {[%emt 0:01:31]} Qxc5 {[%emt 0:00:06][%csl Gd3][%cal Rc5c2]} 24. c3 {[%emt 0:00:07]} Rab8 {[%emt 0:03:11][%cal Ob8b2] ( -> ...Rxb2!)} ({Worse is} 24... Qf2 25. Rd2 Qc5 26. Ne1 $17) 25. Nd4 {[%emt 0:06:13] [#]} Rxb2 $3 {[%emt 0:00:46][%mdl 576] Clearance.  Weighted Error Value: White=1.25/Black=0.06 (flawless)} 0-1

[Event "XV American Continental 2022"]
[Site "San Salvador"]
[Date "2022.05.04"]
[Round "4.7"]
[White "Salinas Herrera, Pablo"]
[Black "Gutierrez, Renzo"]
[Result "1-0"]
[ECO "C71"]
[WhiteElo "2534"]
[BlackElo "2286"]
[Annotator "TA"]
[PlyCount "211"]
[EventDate "2022.05.02"]
[EventCountry "ESA"]
[SourceTitle "playchess.com"]
[Source "ChessBase"]
[SourceQuality "1"]
[TimeControl "40/5400+30:1800+30"]

{[%evp 9,211,7,36,38,33,35,37,29,50,56,43,42,97,95,94,63,75,83,90,77,85,87,83,77,107,51,51,53,56,11,47,26,20,26,70,64,79,74,87,85,85,79,79,79,135,141,119,134,211,200,205,154,156,147,143,135,139,104,113,97,156,146,167,166,187,0,147,79,78,17,17,0,17,20,17,17,18,20,72,78,339,339,325,333,332,332,325,325,325,314,314,300,197,190,1222,175,1335,1007,1120,968,29964,29965,29963,29966,29966,29967,29964,29965,29966,29957,29958,8,8,8,8,8,8,8,8,8,8,8,8,8,8,8,8,8,8,8,8,8,8,8,8,8,8,8,8,8,8,8,8,8,8,8,8,8,8,8,8,8,8,8,8,8,8,8,8,8,8,8,8,8,8,8,8,8,8,8,8,8,8,8,8,8,8,0,8,8,8,8,8,8,8,8,8,8,8,8,8,8,8,8,29988,29989,29989,29990,29990,29991,29991,29992,29992,29993]} 1. e4 {[%emt 0:00:03]} e5 {[%emt 0:14:36]} 2. Nf3 {[%emt 0:00:09]} Nc6 {[%emt 0:00:16]} 3. Bb5 {[%emt 0:00:06]} a6 {[%emt 0:00:07]} 4. Ba4 {[%emt 0:00:05]} d6 {[%emt 0:00:09]} 5. Nc3 {[%emt 0:02:28]} Bd7 {[%emt 0:01:14]} (5... b5 $5 6. Bb3 Be7 $11) 6. Bxc6 {[%emt 0:00:07] C71: Ruy Lopez: Deferred Steinitz Variation, sidelines.} Bxc6 {[%emt 0:00:05]} 7. d4 {[%emt 0:00:06]} exd4 {[%emt 0:00:04]} 8. Nxd4 {[%emt 0:00:05] White is slightly better.} Be7 {[%emt 0:00:12]} 9. Nxc6 {[%emt 0:05:26]} bxc6 {[%emt 0:00:05] [#]} 10. Qf3 $146 {[%emt 0:00:06][%cal Oe4e5]} ({Predecessor:} 10. O-O Nf6 11. Qe2 O-O 12. f4 d5 13. e5 Nd7 14. Kh1 Nb6 15. f5 Bg5 16. Qg4 Bxc1 17. Raxc1 Nc4 18. f6 g6 {0-1 (44) Litvinenko,E (1984)-Kuznetsova,E (2156) Cheliabinsk 2011}) 10... Bg5 {[%emt 0:16:06]} (10... Qd7 $14) 11. e5 $16 {[%emt 0:23:41][%cal Be4e5,Be5e6][%mdl 32]} d5 {[%emt 0:00:34]} 12. e6 {[%emt 0:00:05][%csl Ge6][%cal Rf3f7]} Nh6 {[%emt 0:00:48]} 13. Qg3 {[%emt 0:05:05]} Bf6 {[%emt 0:51:25]} 14. Bxh6 {[%emt 0:15:35] White is more active.} gxh6 {[%emt 0:00:05]} 15. exf7+ {[%emt 0:00:05]} Kxf7 {[%emt 0:00:05]} 16. O-O {[%emt 0:00:05]} Re8 {[%emt 0:01:38]} 17. Rad1 {[%emt 0:02:29]} (17. Rae1 $16) 17... Qd6 $14 {[%emt 0:00:51]} 18. Qh3 {[%emt 0:01:30]} Bg7 {[%emt 0:00:29]} 19. Ne2 {[%emt 0:03:29]} Qe6 {[%emt 0:04:36] aiming for ...Qxh3.} 20. Qf3+ {[%emt 0:00:10]} Qf6 {[%emt 0:00:50] Threatens to win with ...Qxf3.} 21. Nf4 {[%emt 0:00:14][%cal Oc2c4] With the idea c4!} Kg8 {[%emt 0:00:22]} 22. b3 {[%emt 0:02:04]} Re4 {[%emt 0:01:28]} 23. g3 {[%emt 0:00:40][%cal Oc2c4]} Qc3 {[%emt 0:01:30] Prevents c4.} 24. Qxc3 {[%emt 0:08:28]} Bxc3 {[%emt 0:00:06]} 25. Rd3 {[%emt 0:00:03]} Be5 {[%emt 0:03:58]} 26. f3 $36 {[%emt 0:00:40][%mdl 2048] White is really pushing.} Rd4 {[%emt 0:00:04]} (26... Rb4 $142) 27. Re1 $16 {[%emt 0:00:14]} Rxd3 {[%emt 0:00:06]} 28. Nxd3 {[%emt 0:00:05][%mdl 4096] Endgame KRB-KRN} Bd4+ {[%emt 0:01:22]} (28... Bd6 $16 29. Re6 Rf8) 29. Kg2 $18 {[%emt 0:00:06]} Kf7 {[%emt 0:00:04]} 30. f4 {[%emt 0:00:31]} a5 {[%emt 0:00:12]} 31. Kf3 {[%emt 0:00:53]} a4 {[%emt 0:00:46]} 32. Re2 {[%emt 0:02:44]} c5 {[%emt 0:00:31] Prevents Nb4.} 33. f5 {[%emt 0:00:48]} axb3 {[%emt 0:00:50]} 34. axb3 {[%emt 0:00:04]} Ra1 {[%emt 0:00:48]} (34... c4 $142 35. Nf4 cxb3 36. cxb3 Rb8) 35. Nf4 $16 {[%emt 0:00:34]} c6 {[%emt 0:00:08]} 36. Re6 {[%emt 0:00:58]} Rc1 {[%emt 0:00:47]} 37. Re2 $2 {[%emt 0:10:29]} (37. Rxh6 $18 Rxc2 38. Rxh7+ (38. Rxc6 Rxh2 39. Rc7+ Kf8 $16) 38... Ke8 39. Rc7) 37... Bf6 {[%emt 0:01:01]} (37... Ra1 $1 $11) 38. Nd3 {[%emt 0:00:37]} ({Better is} 38. Kg4) 38... Rf1+ {[%emt 0:00:10]} 39. Rf2 {[%emt 0:00:17]} ({White should play} 39. Kg4 $1 $16) 39... Rxf2+ $11 {[%emt 0:00:20]} 40. Nxf2 {[%emt 0:00:06] KB-KN} Bd4 {[%emt 0:00:26]} 41. Nd3 {[%emt 0:32:27]} Kf6 {[%emt 0:10:05]} 42. Kf4 {[%emt 0:00:00]} h5 {[%emt 0:01:19]} 43. h3 {[%emt 0:00:00]} c4 {[%emt 0:05:05]} (43... h6 $11 {keeps the balance.}) 44. bxc4 $16 {[%emt 0:00:00]} dxc4 {[%emt 0:00:05][%mdl 8192]} (44... Bc3 $16 {keeps fighting.}) 45. Nb4 $18 {[%emt 0:00:00]} Be5+ {[%emt 0:02:04]} 46. Ke4 {[%emt 0:00:00]} Bxg3 {[%emt 0:00:05]} 47. Nxc6 {[%emt 0:00:00]} Bd6 {[%emt 0:04:52] [#]} 48. Na5 $1 {[%emt 0:00:00]} c3 {[%emt 0:00:13]} 49. Nc4 {[%emt 0:00:00]} Bc5 {[%emt 0:02:30]} 50. Ne5 {[%emt 0:00:00]} Ba7 {[%emt 0:07:29]} 51. Nd3 {[%emt 0:00:00]} Bb8 $2 {[%emt 0:00:41]} (51... Kf7 52. Nf4 Bf2 53. Nxh5 Ke7) 52. Nc5 $2 {[%emt 0:00:00]} (52. Nb4 {Nd5+ is the strong threat.} Kg7 53. Nd5) 52... Kg5 $2 {[%emt 0:01:30]} (52... Bg3 53. Ne6 Ke7) 53. Nd7 {[%emt 0:00:00]} Bc7 {[%emt 0:00:45]} 54. Nf8 {[%emt 0:00:00]} Kh4 {[%emt 0:00:05]} 55. Nxh7 {[%emt 0:00:02]} Kxh3 {[%emt 0:00:35] [#]} 56. Kf3 $1 {[%emt 0:00:51]} ({Less strong is} 56. f6 Kg3 $14) 56... Kh2 {[%emt 0:00:45]} 57. f6 {[%emt 0:01:27]} Bd6 {[%emt 0:00:55]} 58. f7 {[%emt 0:00:31]} h4 {[%emt 0:00:41]} 59. Ng5 {[%emt 0:00:08]} Be7 {[%emt 0:00:30]} 60. Ne4 $2 {[%emt 0:18:55]} (60. Kg4 {mates} Kg2 61. Kxh4 Kf2 62. Kg4 Ke3 63. Ne6 Ke4 64. f8=Q Bxf8 65. Nxf8) 60... Kg1 $1 $11 {[%emt 0:00:04]} 61. Kg4 {[%emt 0:04:03]} Kg2 {[%emt 0:00:18]} 62. Nxc3 {[%emt 0:00:50]} h3 {[%emt 0:00:10]} 63. Nd5 {[%emt 0:00:33]} h2 {[%emt 0:00:33]} 64. Nxe7 {[%emt 0:00:11]} h1=Q {[%emt 0:00:14] ( -> ...Qd1+)} 65. f8=Q {[%emt 0:00:02] White threatens Qf3+ and mate.} Qd1+ {[%emt 0:00:33]} 66. Kg5 {[%emt 0:00:04]} Qxc2 {[%emt 0:00:19]} 67. Qa8+ {[%emt 0:00:04]} Kf2 {[%emt 0:00:16]} 68. Qa7+ {[%emt 0:00:11]} Kf3 {[%emt 0:00:38]} 69. Qa3+ {[%emt 0:00:22]} Ke4 {[%emt 0:00:37]} 70. Qa8+ {[%emt 0:00:51]} Kd3 {[%emt 0:00:16]} 71. Nf5 {[%emt 0:00:36]} Qc1+ {[%emt 0:00:25]} 72. Kf6 {[%emt 0:00:41]} Qf4 {[%emt 0:00:42]} 73. Qa3+ {[%emt 0:00:09]} Kc2 {[%emt 0:00:24]} 74. Qa2+ {[%emt 0:00:34]} Kc3 {[%emt 0:00:17]} 75. Qb1 {[%emt 0:00:13]} Qf3 {[%emt 0:00:34]} 76. Qb5 {[%emt 0:00:52]} Qf4 {[%emt 0:00:16]} 77. Qe2 {[%emt 0:00:18]} Kb3 {[%emt 0:00:16]} 78. Qd3+ {[%emt 0:00:16]} Kb4 {[%emt 0:00:22]} 79. Qb1+ {[%emt 0:00:04]} Kc3 {[%emt 0:00:14]} 80. Qe1+ {[%emt 0:01:15]} Kd3 {[%emt 0:00:10]} 81. Qd1+ {[%emt 0:00:44]} Kc3 {[%emt 0:00:07]} 82. Qd5 {[%emt 0:00:10]} Kb4 {[%emt 0:00:18]} 83. Qc6 {[%emt 0:00:36]} Qf2 {[%emt 0:00:20]} 84. Qe4+ {[%emt 0:00:22]} Kc3 {[%emt 0:00:18]} 85. Ke6 {[%emt 0:00:14]} Qa2+ {[%emt 0:00:37]} 86. Ke5 {[%emt 0:00:45]} Qa5+ {[%emt 0:00:29]} 87. Kf6 {[%emt 0:00:15] Intending Qe1+ and mate.} Qb6+ {[%emt 0:00:12]} 88. Kf7 {[%emt 0:00:14]} Qc7+ {[%emt 0:00:05]} 89. Ne7 {[%emt 0:00:06]} Qc4+ {[%emt 0:00:03]} 90. Nd5+ {[%emt 0:00:05]} Kb3 {[%emt 0:00:13]} 91. Qe3+ {[%emt 0:00:33]} Kc2 {[%emt 0:00:17]} 92. Qe6 {[%emt 0:01:24] White wants to mate with Ne3+.} Kd3 {[%emt 0:02:45]} 93. Qe3+ {[%emt 0:01:28]} Kc2 {[%emt 0:00:06]} 94. Qe5 {[%emt 0:00:07]} Kd3 {[%emt 0:00:49]} 95. Qd6 {[%emt 0:00:47]} Kd4 {[%emt 0:01:44]} 96. Ke6 {[%emt 0:00:05]} Qe2+ {[%emt 0:00:06]} 97. Kf6 {[%emt 0:00:31] Threatening mate with Nf4+.} Qf3+ {[%emt 0:02:27]} 98. Nf4+ {[%emt 0:00:05]} Ke3 {[%emt 0:00:07]} 99. Kf5 {[%emt 0:01:17]} Qe4+ {[%emt 0:00:50]} 100. Kg5 {[%emt 0:00:04]} Qd4 {[%emt 0:00:44]} 101. Qa3+ {[%emt 0:00:34]} Kd2 $2 {[%emt 0:00:09][%mdl 8192]} (101... Ke4 $11) 102. Qa2+ {[%emt 0:00:04] White mates.} Kd1 {[%emt 0:00:48]} 103. Qe2+ {[%emt 0:00:14]} Kc1 {[%emt 0:00:04]} 104. Nd3+ {[%emt 0:00:01]} Kb1 {[%emt 0:00:07]} 105. Qd1+ {[%emt 0:00:01]} Ka2 {[%emt 0:00:17]} 106. Nc1+ {[%emt 0:00:02] Weighted Error Value: White=0.39/Black=0.37} 1-0

[Event "XV American Continental 2022"]
[Site "San Salvador"]
[Date "2022.05.04"]
[Round "4.8"]
[White "Del Castilho, Martyn"]
[Black "Krysa, Leandro"]
[Result "0-1"]
[ECO "B56"]
[WhiteElo "2289"]
[BlackElo "2525"]
[Annotator "TA"]
[PlyCount "42"]
[EventDate "2022.05.02"]
[EventCountry "ESA"]
[SourceTitle "playchess.com"]
[Source "ChessBase"]
[SourceQuality "1"]
[TimeControl "40/5400+30:1800+30"]

{[%evp 20,42,32,18,33,34,60,5,14,0,0,0,0,-61,-21,-270,-297,-272,-245,-225,-109,-231,-231,-29991,-29992]} 1. e4 {[%emt 0:00:03]} c5 {[%emt 0:00:10]} 2. Nf3 {[%emt 0:00:11]} Nc6 {[%emt 0:00:09]} 3. d4 {[%emt 0:00:13]} cxd4 {[%emt 0:00:10]} 4. Nxd4 {[%emt 0:00:02]} Nf6 {[%emt 0:00:15]} 5. Nc3 {[%emt 0:00:09]} d6 {[%emt 0:00:13]} 6. f3 {[%emt 0:01:15]} e5 {[%emt 0:00:31]} 7. Nb3 {[%emt 0:00:16]} Be7 {[%emt 0:00:28]} 8. Be3 {[%emt 0:00:30]} O-O {[%emt 0:00:19]} 9. Qd2 {[%emt 0:00:30]} Be6 {[%emt 0:00:34]} 10. O-O-O {[%emt 0:01:34]} a5 {[%emt 0:00:26]} 11. Bb5 {[%emt 0:08:36]} a4 {[%emt 0:00:47] B56: Classical Sicilian: Unusual Lines.} 12. Bxa4 {[%emt 0:15:12]} Na5 {[%emt 0:00:12]} 13. Nxa5 {[%emt 0:01:47]} (13. Bg5 $1 $14) 13... Qxa5 $11 {[%emt 0:00:58] The position is equal.} 14. Bb3 {[%emt 0:04:33]} Bxb3 {[%emt 0:05:09]} 15. cxb3 {[%emt 0:00:11] Hoping for a3.} d5 {[%emt 0:00:05]} 16. exd5 {[%emt 0:07:36]} (16. Nxd5 $11 Rfc8+ 17. Nc3) 16... Bb4 $1 $15 {[%emt 0:06:58] [#] aiming for ...Bxc3.} 17. Kb1 $146 {[%emt 0:07:12]} (17. d6 $11) ({Predecessor:} 17. Qc2 Rfc8 18. Rd3 Bxc3 19. Rxc3 Rxc3 20. bxc3 Nxd5 21. Bd2 Qxa2 22. Qxa2 Rxa2 23. Rd1 Ra1+ 24. Kc2 Rxd1 {½-½ (24) Abrahamyan,T (2373)-Escalante Ramirez,B (2452) Saint Louis 2019}) 17... Bxc3 $19 {[%emt 0:21:30][%mdl 64] Remove Defender} 18. bxc3 {[%emt 0:00:18] [#] Strongly threatening c4.} ({Much weaker is} 18. Qxc3 Qxa2+ 19. Kc2 Rfc8 $19) 18... Nxd5 $1 {[%emt 0:01:10][%mdl 512]} 19. Qxd5 {[%emt 0:02:54]} Qxa2+ {[%emt 0:00:29]} 20. Kc1 {[%emt 0:00:01] [#]} Ra3 $1 {[%emt 0:04:57][%mdl 1024] Black has strong compensation.} 21. Qd6 $2 {[%emt 0:12:18]} (21. Qxe5 {leads to mate.} Rxb3) ({Wrong is} 21. Qd2 $2 Qa1+ 22. Kc2 Ra2+ 23. Kd3 Rxd2+ 24. Bxd2 Rd8+ 25. Ke3 Qa7+ 26. Ke2 Qa6+ 27. c4 Qa2 $19) (21. Bc5 $19 Rxb3 22. Qxb3 Qxb3 23. Bxf8 Qxc3+ 24. Kb1 Qb3+ 25. Kc1) 21... Rxb3 {[%emt 0:05:56] Black took control after the opening.  Weighted Error Value: White=1.23/Black=0.03 (flawless)} 0-1